Cogmind - Beta 13 @@@ ROGUE MODE // 2024.04.13 @ 22:09:16 Player: Sunvar Result: Destroyed by G-67 Veteran with Plasma Rifle Performance ------------- Evolutions (4) 2000 Regions Visited (10) 2000 Robots Destroyed (83) 415 Value Destroyed (3004) 3004 Prototype IDs (8) 160 Alien Tech Used (0) 0 Bonus (1667) 1667 TOTAL SCORE: 9246 Bonus ------- High Alert Combat Kills 199 Follower Combat Kills 599 Entered Garrisons 200 Entered DSFs 500 Aligned with FarCom 300 Friendly Fire -131 Cogmind --------- Core Integrity 0/850 Matter 388/450 Energy 114/150 System Corruption 3% Temperature Cool (0) Movement Treading (240) Ox1 Location -6/Factory Parts ------- > --- POWER (1) -------- Light Angular Momentum Engine > --- PROPULSION (5) --- Light Treads Potential Leg > --- UTILITY (5) ------ Large Storage Unit Large Matter Pod Improved Light Armor Plating > --- WEAPON (4) ------- (None) > --- INVENTORY (15) --- Improved Carbon-fiber Leg Authchip [R/Combat] Long-range Tractor Beam Peak State ------------ > --- POWER ------------ Angular Momentum Engine > --- PROPULSION ------- Advanced Treads Armored Huge Wheel Armored Huge Wheel > --- UTILITY ---------- Advanced Heat Sink Large Storage Unit Signal Interpreter Hardened Medium Armor Plating Improved Medium Armor Plating > --- WEAPON ----------- Heavy Machine Gun Improved Light Cannon Assault Cannon Heavy Rocket Launcher > --- INVENTORY -------- Improved Deuterium Engine Improved Carbon-fiber Leg Potential Leg Potential Leg Armored Huge Wheel Large Matter Pod Advanced Targeting Computer Authchip [R/Combat] Long-range Tractor Beam Guided Missile Launcher Mining Laser [Rating: 57] Favorites ----------- Power Improved Deuterium Engine Engine Improved Deuterium Engine Power Core Light Nuclear Core Propulsion Potential Leg Treads Light Treads Leg Potential Leg Wheel Armored Huge Wheel Utility Signal Interpreter Device Long-range Tractor Beam Storage Small Storage Unit Processor Signal Interpreter Hackware Hacking Suite Protection Improved Medium Armor Plating Weapon Improved Light Cannon Energy Gun Heavy EM Shotgun Ballistic Gun Assault Rifle Ballistic Cannon Improved Light Cannon Launcher Grenade Launcher Special Weapon Mining Laser Slashing Weapon Axe Build | -11 -10 -10 -10 -9 -8 -8 -8 -7 -7 -6 ------- Run | Yrd Mat Min Exi Min Mat Sto Gar Fac DSF Fac Slots Evolved 8 | . . . . . 4 . . 2 . 2 Power . | . . . . . . . . . . . Propulsion 3 | . . . . . 2 . . . . 1 Utility 3 | . . . . . 1 . . 2 . . Weapon 2 | . . . . . 1 . . . . 1 Parts Attached 100 | 6 6 2 9 1 25 8 13 2 8 20 Power 9 | 1 . 1 . . 3 . 1 . . 3 Engine 7 | 1 . . . . 2 . 1 . . 3 Core 2 | . . 1 . . 1 . . . . . Reactor . | . . . . . . . . . . . Propulsion 22 | 2 . . 4 . 8 . . . 2 6 Treads 6 | 2 . . . . 2 . . . . 2 Leg 12 | . . . 4 . 6 . . . . 2 Wheel 4 | . . . . . . . . . 2 2 Hover . | . . . . . . . . . . . Flight . | . . . . . . . . . . . Utility 23 | 1 1 1 2 . 3 1 1 2 5 6 Device 5 | . . . . . . . . 1 2 2 Storage 5 | 1 . . 1 . 2 . . . . 1 Processor 3 | . . 1 1 . . . . . . 1 Hackware 1 | . . . . . . . . 1 . . Protection 9 | . 1 . . . 1 1 1 . 3 2 Artifact . | . . . . . . . . . . . Weapon 46 | 2 5 . 3 1 11 7 11 . 1 5 Energy Gun 5 | 1 . . 1 . 3 . . . . . Energy Cannon . | . . . . . . . . . . . Ballistic Gun 12 | 1 3 . 2 . 4 . . . . 2 Ballistic Cannon 7 | . . . . . 1 3 3 . . . Launcher 14 | . 1 . . 1 3 2 5 . 1 1 Special Weapon 7 | . 1 . . . . 2 3 . . 1 Impact Weapon . | . . . . . . . . . . . Slashing Weapon 1 | . . . . . . . . . . 1 Piercing Weapon . | . . . . . . . . . . . Special Melee Weapon . | . . . . . . . . . . . Unidentified Prototypes 8 | . . . 3 . 3 1 1 . . . Parts Lost 32 | . . . . . 6 1 1 . 3 21 Power 4 | . . . . . 1 . 1 . . 2 Propulsion 8 | . . . . . 2 . . . 1 5 Utility 10 | . . . . . 1 . . . 2 7 Weapon 10 | . . . . . 2 1 . . . 7 Highest Loss Streak 7 | . . . . . 2 1 1 . 2 7 To Critical Strikes . | . . . . . . . . . . . Average Slot Usage (%) 96 | . 98 100 97 100 97 99 99 100 83 63 Engine 6 | . 14 11 . . 3 9 8 7 7 5 Core 3 | . . 2 14 14 5 . . . . . Treads 11 | . 28 28 13 . 8 9 9 7 1 4 Leg 18 | . . . 13 28 26 27 27 23 3 1 Storage 10 | . 14 14 13 14 9 9 9 7 7 6 Processor 8 | . . 13 14 14 9 9 9 7 7 6 Protection 6 | . 12 . . . 7 8 9 7 11 7 Energy Gun 1 | . 4 . . . 6 . . . . . Ballistic Gun 11 | . 15 28 26 14 8 9 . . . 4 Ballistic Cannon 5 | . . . . . 3 9 17 15 15 5 Launcher 6 | . 1 . . 14 8 7 7 7 6 3 Naked Turns . | . . . . . . . . . . . Heaviest Build 70 | 13 18 16 18 15 46 46 53 53 61 70 Greatest Support 80 | 40 40 40 60 60 80 78 78 78 78 60 Greatest Overweight (x) 4 | 3 . . 4 . . . . . 1 1 Average Overweight (x) . | . . . . . . . . . . . Largest Inventory Capacity 15 | 8 8 8 8 8 15 15 15 15 15 15 Average Capacity 11 | 7 8 8 7 8 9 15 15 15 15 15 Most Carried 15 | 6 8 8 8 8 15 15 15 14 15 13 Average Carried 10 | 4 7 7 7 7 8 14 14 13 13 9 Final Capacity 15 | 8 8 8 8 8 15 15 15 15 15 15 Final Carried 15 | 6 8 8 8 8 15 15 15 13 13 3 Class Distribution -------------------- 40% | Mutant 33% | Skirmisher 11% | Scavenger-Skirmisher 8% | Commander-Skirmisher 4% | Tank Dominant Class ---------------- Mutant | -10/Materials Mutant | -10/Mines Mutant | -10/Exiles Mutant | -9/Mines Scavenger-Skirmisher | -8/Materials Skirmisher | -8/Storage Skirmisher | -8/Garrison Skirmisher | -7/Factory Tank | -7/DSF Mutant | -6/Factory Resources | -11 -10 -10 -10 -9 -8 -8 -8 -7 -7 -6 ----------- Run | Yrd Mat Min Exi Min Mat Sto Gar Fac DSF Fac Matter Collected 2799 | 232 236 126 90 49 479 389 528 . 333 337 Remotely 449 | . . . . . . . . . 325 124 Salvage Created 2301 | . 98 93 . 64 924 294 236 . 165 427 Parts 156 | . 12 8 . 1 63 22 16 . 13 21 Haulers Intercepted . | . . . . . . . . . . . Recyclers Shooed 2 | . . . . . 2 . . . . . Parts Field Recycled . | . . . . . . . . . . . Retrieved Matter . | . . . . . . . . . . . Parts Self-Destructed . | . . . . . . . . . . . Prevented . | . . . . . . . . . . . Kills | -11 -10 -10 -10 -9 -8 -8 -8 -7 -7 -6 ------- Run | Yrd Mat Min Exi Min Mat Sto Gar Fac DSF Fac Combat Hostiles Destroyed 71 | . 6 2 . 3 20 10 13 . 5 12 Melee 1 | . . . . . . . . . . 1 Guns 22 | . 6 2 . . 11 2 . . . 1 Cannons 26 | . . . . . 2 6 8 . 4 6 AOE 22 | . . . . 3 7 2 5 . 1 4 Classes Destroyed 14 | . 3 1 . . 7 1 1 . 1 . Worker 2 | . . . . . 2 . . . . . Builder 3 | . . . . . 1 . . . . 2 Recycler 2 | . . . . . 2 . . . . . Mechanic 1 | . . . . . . 1 . . . . Operator 1 | . 1 . . . . . . . . . Watcher 2 | . 1 . . . 1 . . . . . Swarmer 22 | . 6 . . . 4 5 6 . . 1 Grunt 30 | . . 2 . 3 9 4 4 . . 8 Brawler 2 | . . . . . 1 . . . . 1 Duelist 4 | . . . . . 1 . 1 . . 2 Sentry 5 | . . . . . 3 2 . . . . Specialist 5 | . . . . . . . 2 . 3 . Hunter 3 | . . . . . 2 . . . 1 . Programmer 1 | . . . . . . . . . 1 . Best Kill Streak 8 | . 3 2 . 3 6 8 7 . 4 4 Combat Bots Only 8 | . 3 2 . 3 4 8 7 . 4 3 Max Kills in Single Turn 3 | . 1 1 . 2 3 2 1 . 1 3 Gunslinging . | . . . . . . . . . . . Exploded 3 | . . . . 2 3 2 1 . 1 2 Melee 1 | . . . . . . . . . . 1 Uniques/NPCs Destroyed . | . . . . . . . . . . . Combat | -11 -10 -10 -10 -9 -8 -8 -8 -7 -7 -6 -------- Run | Yrd Mat Min Exi Min Mat Sto Gar Fac DSF Fac Hostile Shots Fired 588 | . 29 20 . 8 86 80 66 . 31 268 Missed 163 | . 2 2 . 4 31 20 24 . 11 69 Damage Taken 7457 | . 220 231 . 51 963 760 420 . 634 4178 Core 1085 | . 31 29 . . 22 69 32 . 40 862 Absorbed by Shields . | . . . . . . . . . . . Regen/Repaired (Parts) 169 | . . . . . 67 102 . . . . Core Remaining (%) 86 | 100 . . . 76 . . 77 . 94 . Volleys Fired 196 | 4 23 9 . 3 48 35 24 . 14 36 Largest 4 | 2 2 2 . 2 3 3 3 . 3 4 Hottest 183 | 60 120 40 . 50 119 162 183 . 122 152 Shots Fired 407 | 8 42 18 . 6 112 78 53 . 32 58 Gun 187 | 8 37 18 . 3 92 24 . . . 5 Cannon 158 | . . . . . 8 47 39 . 28 36 Launcher 38 | . . . . 3 12 4 8 . 4 7 Special 24 | . 5 . . . . 3 6 . . 10 Kinetic 301 | 4 23 18 . 3 74 71 39 . 28 41 Thermal 42 | 4 19 . . . . 3 6 . . 10 Explosive 37 | . . . . 3 12 3 8 . 4 7 Electromagnetic 27 | . . . . . 26 1 . . . . Robot Hit Streak 19 | 3 5 4 . 5 19 7 6 . 4 13 Robot Miss Streak 5 | 2 3 1 . 1 3 5 2 . 3 4 Penetration Max . | . . . . . . . . . . . Secondary Targets 1 | . . . . . 1 . . . . . Max Gunslinging Chain 1 | . . . . . 1 . . . . . Shots Hit Robots 231 | 5 19 13 . 5 72 34 22 . 16 45 Core Hits 161 | 1 9 5 . 6 62 19 19 . 11 29 Critical Kills 2 | . . . . . . 2 . . . . Critical Parts Destroyed . | . . . . . . . . . . . Critical Strikes 4 | . . . . . . 2 1 . 1 . Destroy 2 | . . . . . . 2 . . . . Blast 2 | . . . . . . . 1 . 1 . Melee Attacks 19 | . . . . . . . . . . 19 Impact . | . . . . . . . . . . . Slashing 19 | . . . . . . . . . . 19 Piercing . | . . . . . . . . . . . Sneak Attacks . | . . . . . . . . . . . Combat Hostiles . | . . . . . . . . . . . Follow-up Attacks . | . . . . . . . . . . . Damage Inflicted 6612 | 60 237 195 . 265 1670 922 1013 . 507 1743 Guns 1535 | 60 213 193 . 25 783 219 . . . 42 Cannons 1995 | . . . . . 94 544 353 . 330 674 Explosions 2616 | . . . . 240 793 159 660 . 177 587 Melee 368 | . . . . . . . . . . 368 Ramming 2 | . . 2 . . . . . . . . Kinetic 3052 | 39 138 193 . 25 495 763 353 . 330 716 Thermal 192 | 21 99 . . . . . . . . 72 Explosive 2590 | . . . . 240 793 133 660 . 177 587 Electromagnetic 408 | . . . . . 382 26 . . . . Impact . | . . . . . . . . . . . Slashing 368 | . . . . . . . . . . 368 Piercing . | . . . . . . . . . . . Highest Corruption 3 | . . . . . . 3 3 . . 3 Average Corruption 2 | . . . . . . 2 3 . . 1 Corruption Purged . | . . . . . . . . . . . Corruption Blocked . | . . . . . . . . . . . Effects 35 | . . . . . . 10 25 . . . Message Errors 8 | . . . . . . 3 5 . . . Matter Fused 8 | . . . . . . 3 5 . . . Heat Flow Errors 5 | . . . . . . 2 3 . . . Energy Discharges 5 | . . . . . . 1 4 . . . Data Loss (minor) 3 | . . . . . . . 3 . . . Data Loss (major) 3 | . . . . . . . 3 . . . Misfires 2 | . . . . . . . 2 . . . Alerts 1 | . . . . . . 1 . . . . Overload Shots . | . . . . . . . . . . . Overflow Damage 96 | . . . . . . . . . . 96 Projectiles . | . . . . . . . . . . . Explosions 78 | . . . . . . . . . . 78 Melee 18 | . . . . . . . . . . 18 Knockbacks 21 | . . . . . . 9 2 . 2 8 Impact . | . . . . . . . . . . . Kinetic 19 | . . . . . . 8 2 . 2 7 Secondary 2 | . . . . . . 1 . . . 1 Self-Inflicted Damage 363 | . . . . . 183 12 37 . . 131 Shots 9 | . . . . . 3 1 1 . . 4 Rammed 1 | . . 1 . . . . . . . . Targets Rammed 1 | . . 1 . . . . . . . . Kicked . | . . . . . . . . . . . Crushed . | . . . . . . . . . . . Highest Temperature 417 | . 108 31 . 16 318 334 230 . . 417 Average Temperature 85 | . 44 17 . 11 87 93 79 . . 171 Received Heat Transfer 2183 | . . 132 . 30 252 351 18 . . 1400 Effects 8 | . . . . . 1 2 . . . 5 Shutdowns 1 | . . . . . . . . . . 1 Energy Bleed 1 | . . . . . 1 . . . . . Interference 5 | . . . . . . 2 . . . 3 Short Circuit 1 | . . . . . . . . . . 1 Siege Activations . | . . . . . . . . . . . Robots Corrupted . | . . . . . . . . . . . Combat Hostiles . | . . . . . . . . . . . Parts Fried 2 | . . . . . 2 . . . . . Impact Corruptions . | . . . . . . . . . . . Robots Melted . | . . . . . . . . . . . Combat Hostiles . | . . . . . . . . . . . Parts Melted . | . . . . . . . . . . . Heat Transferred 425 | 50 225 . . . . . . . . 150 Parts Sabotaged . | . . . . . . . . . . . Parts Stolen . | . . . . . . . . . . . Parts Stripped . | . . . . . . . . . . . Power Chain Reactions . | . . . . . . . . . . . Alert | -11 -10 -10 -10 -9 -8 -8 -8 -7 -7 -6 ------- Run | Yrd Mat Min Exi Min Mat Sto Gar Fac DSF Fac Peak Influence 758 | . 102 50 . 185 450 439 758 397 458 439 Initial 397 | . . 27 . . 13 167 285 397 280 240 Average 213 | . 31 20 . 77 163 221 616 397 370 311 Maximum Alert Level 3 | . . . . . 2 2 3 1 2 2 Low Security (%) 55 | 100 100 100 . 100 62 36 . . . 12 Level 1 29 | . . . . . 35 61 23 100 42 48 Level 2 7 | . . . . . 2 2 15 . 57 38 Level 3 8 | . . . . . . . 61 . . . Level 4 . | . . . . . . . . . . . Level 5 . | . . . . . . . . . . . High Security . | . . . . . . . . . . . Max Security . | . . . . . . . . . . . Squads Dispatched 13 | . 1 . . . 2 3 . . 2 5 Investigation 1 | . . . . . . 1 . . . . Extermination 1 | . . . . . . . . . . 1 Reinforcement 7 | . 1 . . . 2 1 . . 2 1 Assault 3 | . . . . . . . . . . 3 Garrison 1 | . . . . . . 1 . . . . Intercept . | . . . . . . . . . . . Searches Triggered . | . . . . . . . . . . . Construction Impeded 2 | . . . . . 1 . . . . 1 Haulers Reinforced . | . . . . . . . . . . . Active Scanning Responses . | . . . . . . . . . . . Cargo Convoy Interrupts . | . . . . . . . . . . . Stealth | -11 -10 -10 -10 -9 -8 -8 -8 -7 -7 -6 --------- Run | Yrd Mat Min Exi Min Mat Sto Gar Fac DSF Fac Distress Signals 11 | . . . . . 7 4 . . . . Communications Jammed . | . . . . . . . . . . . Distress Signals . | . . . . . . . . . . . Times Spotted 145 | . 12 2 . 10 34 30 16 . 8 33 Peak Tracking Total 11 | . 4 2 . 4 6 9 4 . 3 11 Tactical Retreats 7 | . . . . . 2 . . . 3 2 Traps | -11 -10 -10 -10 -9 -8 -8 -8 -7 -7 -6 ------- Run | Yrd Mat Min Exi Min Mat Sto Gar Fac DSF Fac Traps Triggered 5 | . . . . . . 3 1 . . 1 Indirectly . | . . . . . . . . . . . Trap Hack Attempts . | . . . . . . . . . . . Triggered . | . . . . . . . . . . . Disarmed . | . . . . . . . . . . . Reprogrammed . | . . . . . . . . . . . Reused . | . . . . . . . . . . . Traps Extracted . | . . . . . . . . . . . Installed . | . . . . . . . . . . . Triggered . | . . . . . . . . . . . Machines | -11 -10 -10 -10 -9 -8 -8 -8 -7 -7 -6 ---------- Run | Yrd Mat Min Exi Min Mat Sto Gar Fac DSF Fac Machines Disabled 7 | . . . . . 2 2 1 . . 2 Max in Single Turn 2 | . . . . . 2 1 1 . . 1 Garrison Access 1 | . . . . . 1 . . . . . Garrison Relay 1 | . . . . . . . 1 . . . Machines Repaired . | . . . . . . . . . . . Machines Dismantled . | . . . . . . . . . . . Machines Sabotaged . | . . . . . . . . . . . Overloaded Fab Kills . | . . . . . . . . . . . Hacking | -11 -10 -10 -10 -9 -8 -8 -8 -7 -7 -6 --------- Run | Yrd Mat Min Exi Min Mat Sto Gar Fac DSF Fac Machines Accessed 28 | . 6 . 1 . 6 10 3 2 . . Terminals 18 | . 5 . . . 2 7 3 1 . . Fabricators . | . . . . . . . . . . . Repair Stations 2 | . . . . . 1 1 . . . . Recycling Units 4 | . 1 . . . 1 1 . 1 . . Scanalyzers 1 | . . . . . 1 . . . . . Garrison Access 2 | . . . . . 1 1 . . . . Total Hacks 52 | . 14 . 1 . 12 18 5 2 . . Successful 28 | . 5 . 1 . 9 10 1 2 . . Failed 24 | . 9 . . . 3 8 4 . . . Catastrophic 8 | . 5 . . . . 2 1 . . . Database Lockouts . | . . . . . . . . . . . Manual 26 | . 12 . 1 . 1 11 1 . . . Terminals 35 | . 13 . . . 2 14 5 1 . . Fabricators . | . . . . . . . . . . . Repair Stations 5 | . . . . . 3 2 . . . . Recycling Units 4 | . 1 . . . 1 1 . 1 . . Scanalyzers 3 | . . . . . 3 . . . . . Garrison Access 4 | . . . . . 3 1 . . . . Terminal Hacks 15 | . 4 . 1 . 2 6 1 1 . . Record 3 | . . . 1 . 1 1 . . . . Robot Analysis 1 | . 1 . . . . . . . . . Open Door 2 | . . . . . . 2 . . . . Open DSF 1 | . . . . . . . . 1 . . Branch Access Points 1 | . 1 . . . . . . . . . Terminal Index 2 | . 1 . . . . 1 . . . . Recall Investigation 1 | . . . . . . 1 . . . . Recall Reinforcements 1 | . 1 . . . . . . . . . Hauler Manifests 1 | . . . . . 1 . . . . . Zone Layout 1 | . . . . . . 1 . . . . Garrison Registry 1 | . . . . . . . 1 . . . Fabricator Hacks . | . . . . . . . . . . . Repair Station Hacks 4 | . . . . . 2 2 . . . . Scan Component 2 | . . . . . 1 1 . . . . Repair 2 | . . . . . 1 1 . . . . Recycling Unit Hacks 4 | . 1 . . . 1 1 . 1 . . Report Inventory 4 | . 1 . . . 1 1 . 1 . . Scanalyzer 2 | . . . . . 2 . . . . . Insert Component 1 | . . . . . 1 . . . . . Analyze 1 | . . . . . 1 . . . . . Garrison Access Hacks 3 | . . . . . 2 1 . . . . Unlock Access 1 | . . . . . . 1 . . . . Seal Access 1 | . . . . . 1 . . . . . Coupler Status 1 | . . . . . 1 . . . . . Unauthorized Hacks . | . . . . . . . . . . . Terminals . | . . . . . . . . . . . Fabricators . | . . . . . . . . . . . Repair Stations . | . . . . . . . . . . . Recycling Units . | . . . . . . . . . . . Scanalyzers . | . . . . . . . . . . . Garrison Access . | . . . . . . . . . . . Data Cores Recovered 1 | . 1 . . . . . . . . . Used . | . . . . . . . . . . . Hacking Detections 19 | . 4 . . . 4 7 3 1 . . Full Trace Events 1 | . 1 . . . . . . . . . Feedback Events . | . . . . . . . . . . . Feedback Blocked . | . . . . . . . . . . . Robot Schematics Acquired . | . . . . . . . . . . . Robots Built . | . . . . . . . . . . . Authchips . | . . . . . . . . . . . Time . | . . . . . . . . . . . Total Robot Build Rating . | . . . . . . . . . . . Part Schematics Acquired 1 | . . . . . 1 . . . . . Parts Built . | . . . . . . . . . . . Authchips . | . . . . . . . . . . . Time . | . . . . . . . . . . . Total Part Build Rating . | . . . . . . . . . . . Parts Repaired 2 | . . . . . 1 1 . . . . Time 76 | . . . . . 44 32 . . . . Parts Recycled . | . . . . . . . . . . . Recycled Matter . | . . . . . . . . . . . Retrieved Matter . | . . . . . . . . . . . Retrieved Components . | . . . . . . . . . . . Parts Scanalyzed 1 | . . . . . 1 . . . . . Part Schematics Acquired 1 | . . . . . 1 . . . . . Parts Damaged . | . . . . . . . . . . . Bothacking | -11 -10 -10 -10 -9 -8 -8 -8 -7 -7 -6 ------------ Run | Yrd Mat Min Exi Min Mat Sto Gar Fac DSF Fac Used RIF Installer . | . . . . . . . . . . . Robots Hacked . | . . . . . . . . . . . Non-combat . | . . . . . . . . . . . Combat . | . . . . . . . . . . . Robot Hacks Applied . | . . . . . . . . . . . Relay Couplers Released 4 | . . . . . . . 4 . . . Machine Destruction 4 | . . . . . . . 4 . . . Fabnet Peak Effective % . | . . . . . . . . . . . Robots Rewired . | . . . . . . . . . . . Allies Hacked . | . . . . . . . . . . . Hacks Repelled . | . . . . . . . . . . . Allies | -11 -10 -10 -10 -9 -8 -8 -8 -7 -7 -6 -------- Run | Yrd Mat Min Exi Min Mat Sto Gar Fac DSF Fac Total Allies 15 | . . . . 5 . 10 . . . . Largest Group 10 | . . . . 5 2 10 5 . . . Highest-Rated Group 173 | . . . . 90 44 173 76 . . . Highest-Rated Ally 31 | . . . . 31 31 29 16 . . . Total Orders . | . . . . . . . . . . . Ally Attacks 170 | . . . . 21 12 100 37 . . . Total Damage 2322 | . . . . 270 167 1435 450 . . . Kills 28 | . . . . 9 . 14 5 . . . Allies Corrupted . | . . . . . . . . . . . Allies Melted . | . . . . . . . . . . . Intel | -11 -10 -10 -10 -9 -8 -8 -8 -7 -7 -6 ------- Run | Yrd Mat Min Exi Min Mat Sto Gar Fac DSF Fac Robot Analysis Total 1 | . 1 . . . . . . . . . Derelict Logs Recovered 4 | . . 2 . 2 . . . . . . Drone Launches . | . . . . . . . . . . . Drone Recoveries . | . . . . . . . . . . . Exploration | -11 -10 -10 -10 -9 -8 -8 -8 -7 -7 -6 ------------- Run | Yrd Mat Min Exi Min Mat Sto Gar Fac DSF Fac Turns Passed 8728 | 96 938 844 412 872 1914 1668 1111 92 202 579 Spaces Moved 5209 | 46 488 492 330 762 963 936 720 91 128 253 Core 19 | 10 . . 9 . . . . . . . Treads 1138 | 36 488 492 121 . . . . . . 1 Legs 3711 | . . . 200 762 963 936 720 91 25 14 Wheels 341 | . . . . . . . . . 103 238 Hover . | . . . . . . . . . . . Flight . | . . . . . . . . . . . Fastest Speed 50 | 50 160 160 90 90 90 100 100 100 100 90 Average Speed 112 | 150 160 160 117 90 102 100 100 100 107 112 Slowest Speed 250 | 200 160 160 250 90 106 100 100 100 115 225 Overloaded Moves . | . . . . . . . . . . . Propulsion Burnouts . | . . . . . . . . . . . Robots Hopped . | . . . . . . . . . . . Cave-ins Triggered . | . . . . . . . . . . . Exploration Rate (%) 59 | 5 81 97 63 99 63 80 69 3 84 6 Regions Visited 10 Branch Regions 4 Pre-discovered Areas 2 | . . 1 . 1 . . . . . . Known Exits Taken 7 | . 1 1 1 1 1 1 . 1 . . Unknown Exits Taken 1 | 1 . . . . . . . . . . Scrap Searched 4 | . . 2 . 2 . . . . . . Spaces Dug 11 | . 3 . . . . 8 . . . . Terrain Destroyed 379 | . 4 . . 4 105 22 115 . 46 83 Melee . | . . . . . . . . . . . Projectile 9 | . 4 . . . . 4 1 . . . AOE 370 | . . . . 4 105 18 114 . 46 83 Terrain Rammed . | . . . . . . . . . . . Walls Destroyed . | . . . . . . . . . . . Machines Disabled . | . . . . . . . . . . . Actions | -11 -10 -10 -10 -9 -8 -8 -8 -7 -7 -6 --------- Run | Yrd Mat Min Exi Min Mat Sto Gar Fac DSF Fac Total 7629 | 63 594 533 354 943 1801 1593 1053 92 165 438 Wait 1984 | . 68 27 . 170 728 596 284 . 6 105 Move 5197 | 45 487 491 329 761 962 935 717 90 127 253 Hop . | . . . . . . . . . . . Pick Up 62 | 7 5 1 5 4 24 9 4 . 2 1 Fast Attach 49 | 6 2 . 9 . 9 2 5 . 5 11 Attach 24 | . . . . . 7 1 2 2 3 9 Detach 3 | . . . . . . . 1 . 2 . Swap 27 | . 4 2 . 1 9 5 6 . . . Drop 64 | 1 5 2 11 4 14 9 8 . 6 4 Fire 196 | 4 23 9 . 3 48 35 24 . 14 36 Melee 19 | . . . . . . . . . . 19 Ram . | . . . . . . . . . . . Kick . | . . . . . . . . . . . Crush 1 | . . 1 . . . . . . . . Escape Stasis 2 | . . . . . . . 2 . . . Rewire 1 | . . . . . . 1 . . . . Trap . | . . . . . . . . . . . Miscellaneous . | . . . . . . . . . . . Route ------- -11/Scrapyard -10/Materials (discovered 4 exits: *Mat x2 / *Min x2) -10/Mines (discovered 3 exits: *Mat x2 / *Exi) -10/Exiles -9/Mines (discovered 2 exits: *Mat x2) -8/Materials (discovered 2 exits: *Fac / *Sto) -8/Storage (discovered 2 exits: *Fac / Gar) -8/Garrison (discovered 3 exits: *Fac x3) -7/Factory -7/DSF -6/Factory History --------- Turn | Location | Event 21 | -11/Scrapyard | Discovered new exit (range 16) 97 | -11/Scrapyard | Entered Materials 258 | -10/Materials | Discovered new exit (range 8) 293 | -10/Materials | Discovered new exit (range 16) 301 | -10/Materials | Build established: Mutant 494 | -10/Materials | Identified exit to Mines 756 | -10/Materials | Discovered new exit (range 10) 797 | -10/Materials | Derelicts attacked the area 1035 | -10/Materials | Entered Mines 1075 | -10/Mines | Discovered new exit (range 6) 1088 | -10/Mines | Identified exit to Materials 1091 | -10/Mines | Met a Derelict bent on vengeance 1170 | -10/Mines | Learned location of Mines (-9) 1193 | -10/Mines | Learned Materials emergency access door positions 1831 | -10/Mines | Discovered exit to Materials (range 12) 1873 | -10/Mines | Deemed a non-threat by the Exiles lab entrance 1873 | -10/Mines | Discovered new exit (range 5) 1878 | -10/Mines | Identified exit to Exiles 1879 | -10/Mines | Entered Exiles 1923 | -10/Exiles | Met 8R-AWN 1953 | -10/Exiles | Met EX-HEX 2007 | -10/Exiles | Met EX-BIN 2025 | -10/Exiles | Aligned with FarCom system 2027 | -10/Exiles | Given EX-Vault access code 2063 | -10/Exiles | Opened EX-Vault 2077 | -10/Exiles | Found Prototype Leg 2077 | -10/Exiles | Identified Potential Leg 2079 | -10/Exiles | Found Potential Leg 2085 | -10/Exiles | Found Prototype Energy Gun 2085 | -10/Exiles | Identified AWS/Thermal 2088 | -10/Exiles | Found Prototype Processor 2088 | -10/Exiles | Identified 0b10 Alert Chip 2174 | -10/Exiles | Warned to stay clear of 0b10 Research branches 2201 | -10/Exiles | Met EX-DEC 2253 | -10/Exiles | Discovered new exit (range 10) 2290 | -10/Exiles | Identified exit to Mines 2291 | -10/Exiles | Left Exiles lab with Potential Leg 2291 | -10/Exiles | Entered Mines 2435 | -9/Mines | Found a hidden stash of uninstalled traps 2474 | -9/Mines | Discovered new exit (range 8) 2479 | -9/Mines | Learned location of Storage (-8) 2480 | -9/Mines | Identified exit to Materials 2600 | -9/Mines | Discovered exit to Materials (range 5) 2637 | -9/Mines | Assisted by bots powering up and referring to "LRC-V3" 2729 | -9/Mines | Learned Materials garrison access intel 3163 | -9/Mines | Entered Materials 3163 | -8/Materials | Accompanied by 2 allies 3163 | -8/Materials | Evolved 4 slots: Propulsion x2, Utility x1, Weapon x1 3164 | -8/Materials | Identified exit to Factory 3166 | -8/Materials | Loaded intel: 1 garrison access location 3168 | -8/Materials | Led the pair of lost Derelicts to an unsafe place 3701 | -8/Materials | Build established: Scavenger-Skirmisher 4335 | -8/Materials | Discovered new exit (range 5) 4344 | -8/Materials | Identified exit to Storage 4534 | -8/Materials | Build established: Skirmisher 4789 | -8/Materials | Repaired Imp. Deuterium Engine 5077 | -8/Materials | Entered Storage 5338 | -8/Storage | Found Prototype Launcher 5820 | -8/Storage | Destroyed 8 combat bots 5981 | -8/Storage | Assisted by bots powering up and referring to "LRC-V3" 6267 | -8/Storage | Repaired Imp. Light Cannon 6573 | -8/Storage | Build established: Commander-Skirmisher 6623 | -8/Storage | Discovered exit to Factory (range 8) 6690 | -8/Storage | Garrison activated, responded to threat 6733 | -8/Storage | Identified exit to Garrison 6745 | -8/Storage | Entered Garrison 6745 | -8/Garrison | Accompanied by 5 allies 6792 | -8/Garrison | Identified Gui. Missile Launcher 6835 | -8/Garrison | Discovered exit to Factory (range 37) 6835 | -8/Garrison | Discovered exit to Factory (range 68) 6835 | -8/Garrison | Discovered exit to Factory (range 89) 6839 | -8/Garrison | Triggered checkpoint 6969 | -8/Garrison | Triggered checkpoint 6980 | -8/Garrison | Triggered checkpoint 7013 | -8/Garrison | Lost 3 allies 7035 | -8/Garrison | Attempted to access garrison exit controls, blocked by remote lockdown 7089 | -8/Garrison | Build established: Skirmisher 7113 | -8/Garrison | Triggered checkpoint 7113 | -8/Garrison | Triggered checkpoint 7167 | -8/Garrison | Destroyed 7 combat bots 7173 | -8/Garrison | Garrison Relay disabled 7716 | -8/Garrison | Attempted to access garrison exit controls, blocked by remote lockdown 7856 | -8/Garrison | Entered Factory 7856 | -7/Factory | Evolved 2 slots: Utility x2 7948 | -7/Factory | Identified exit to DSF 7948 | -7/Factory | Entered DSF 7991 | -7/DSF | Additional patrols routed to DSF 8041 | -7/DSF | Discovered new exit (range 16) 8149 | -7/DSF | Identified exit to Factory 8150 | -7/DSF | Entered Factory 8150 | -6/Factory | Evolved 2 slots: Propulsion x1, Weapon x1 8335 | -6/Factory | Lost 3 parts (2u1w) 8500 | -6/Factory | First assault squad dispatched 8528 | -6/Factory | Lost 7 parts (1p1n2u3w) 8610 | -6/Factory | Lost 4 parts (2n1u1w) 8670 | -6/Factory | Core integrity fell below 50% 8688 | -6/Factory | Lost 3 parts (1p1n1w) 8716 | -6/Factory | Core integrity fell below 20% 8729 | -6/Factory | Destroyed by G-67 Veteran with Plasma Rifle Last Messages --------------- 08690_ G-67 Veteran unfolds itself. 08690_ G-50 Soldier unfolds itself. 08690_ M-28 Smith unfolds itself. 08690_ C-30 ARC bursts open, deploying its payload. 08690_ G-67 Veteran unfolds itself. 08690_ B-48 Gladiator unfolds itself. 08690_ G-50 Soldier unfolds itself. 08690_ E-15 Imp unfolds itself. 08694_ E-15 Imp destroyed. 08698_ Destroyed Shock Rifle. 08700_ Knocked back. 08714_ Signal Interpreter destroyed. 08714_ System corrupted by crushing effect (+1). 08715_ Imp. Heavy Armor Plating destroyed. 08717_ B-48 Gladiator destroyed. 08721_ G-50 Soldier destroyed. 08721_ Axe destroyed. 08722_ Acquired Imp. Light Armor Plating. 08725_ Acquired Lgt. Angular Momentum Engine. 08728_ Acquired Lgt. Treads. Map ----- +----------------------------------------------------+ | ????????????????????????????? | | ????????????????????????????? | | ????????????????????????????? | | ????????????????????????????? | | ????????????????????????????? | | ????????????????????????????? | | ????????????????????????????? | | ????????????????????????????? | | ????????????????????????????? | | ????????????????????????????? | | ????????????????????????????? | | ????????????????????????????? | | ????????????????????????????? | | ?????????????????+###???????? | | ???????????????? ???????? | | ???????????????? ???????? | | ????????????????" #??????? | | ????????????????" #??????? | | ????????????????" #??????? | | ??????????????? #??????? | | ?????????#? ? """ #??????? | | ?????????# ? """ #??????? | | ?????????#=! """ #??????? | | ?????????#!! ??###### | | ?????????# """ ??# # | | ?????????# """ ??# @""# | | ?????????# """ #??#pg""# | | ?????????# ####gg""# | | ?????????+ [/gg/G# | | ?????????# ####gm""# | | ?????????# #??#! ""# | | ?????????######T# #??# g""# | | ??????????????#?# #??# # | | ????????????????# #??#+#### | | ????????????????# #??#%#??? | | ??????????####### #??#"#??? | | ??????????# #??#"#??? | | ???????#### #??#%#??? | | ??????# """" ####"#??? | | ??????# ""T" #??? | | ??????# #??? | | ??????# ! [ ## #??? | | ??????##### # # ### #??? | | ??????????### ####?# #??? | | ???????############# #??? | | ???????# / #??? | | ???????# ###### #??? | | ???????# = #????# #??? | | ???????# #????# #??? | | ???????# !*! #????# #??? | +----------------------------------------------------+ Best States ------------- Heat Dissipation 56 Energy Generation 18 Energy Capacity 300 Matter Stores 410 Matter Capacity 450 Sight Range 16 Terrain Scan Density 10 Armor Coverage 600 Evasion (%) 57 Targeting Accuracy 8 Recoil Reduction 2 Offensive Hacking 10 Authchip Count 1 Item Schematics ----------------- Mak. Power Source | -8/Materials | Scanalyzed Robot Schematics ------------------ None Fabricated ------------ Nothing Alien Tech Used ----------------- None Achievements -------------- GoHome() Challenges ------------ None Game ------ Seed ShrapnelRocketBlade Manual? 0 Play Time 01:47:11 Cumulative 20.0 hours Start 2024.04.13 @ 15:58:28 End 2024.04.13 @ 22:09:16 Sessions 3 Manual Loads 0 Difficulty Rogue Special Mode None Game No. 17 Rogue 17 Adventurer 0 Explorer 0 Win Type - Total 0 Types 0/0/0/0/0/0/0/0/0 Lore% 16 Gallery% 19 Achievement% 17 Wizard Run 0 Options --------- Layout 0 ASCII 0 Keyboard 0 Movement Numpad Keybinds 0 Fullscreen 1 Font 24/Smallcaps Map View 76x56 Zoom Use 0% Tactical HUD 1 Map Filters NONE Filters NONE Steam 1 RUN: 0a3d7f1d-12a7-4398-b862-301cfcfd30b8